fUSD/lending_fUSD_20241112
["ID","MTS","AMOUNT","RATE_DAILY","PERIOD"]
[342088056,1731427831729,-210.168579,0.000125,2]
[342088057,1731427831738,-498.83255696,0.000125,2]
[342088058,1731427831751,-350.72864304,0.000125,2]
[342088059,1731427831760,-165.0,0.00012537,2]
[342088060,1731427831770,-236.8,0.00012578,2]
[342088061,1731427831780,-885.31,0.00012591,2]
[342088062,1731427831789,-28.16315328,0.00012684,2]
[342088063,1731427831800,-152.38684672,0.00012684,2]
[342088064,1731427831810,-453.0,0.00012796,2]
[342088065,1731427831819,-1254.0,0.00012796,2]
[342088066,1731427831828,-1991.0,0.00012796,2]
[342088067,1731427831838,-150.502,0.00012796,2]
[342088083,1731427832101,-559.0,0.00012796,2]
[342088084,1731427832115,-1923.0,0.00012796,2]
[342088085,1731427832125,-263.5176,0.000128,2]
[342088086,1731427832136,-426.36555989,0.0001282,2]
[342088087,1731427832147,-150.0,0.00012869,2]
[342088088,1731427832156,-3000.0,0.0001287,2]
[342088089,1731427832166,-2303.78,0.0001287,2]
[342088090,1731427832177,-560.1,0.0001287,2]
[342088091,1731427832187,-150.0,0.00012877,2]
[342088092,1731427832207,-261.83406558,0.00012899,2]
[342088093,1731427832217,-926.721,0.00012899,2]
[342088094,1731427832226,-2500.0,0.000129,2]
[342088095,1731427832235,-5391.77,0.000129,2]
[342088096,1731427832245,-1431.7459,0.000129,2]
[342088097,1731427832254,-1217.97712665,0.000129,2]
[342088098,1731427832263,-1476.407,0.000129,2]
[342088099,1731427832273,-10597.2509,0.000129,2]
[342088100,1731427832282,-1221.8339,0.000129,2]
[342088101,1731427832292,-9735.1058,0.000129,2]
[342088102,1731427832301,-10119.1266,0.000129,2]
[342088103,1731427832310,-4404.6443,0.000129,2]
[342088104,1731427832319,-9922.8889,0.000129,2]
[342088105,1731427832329,-27897.399,0.000129,2]
[342088106,1731427832338,-204.22136322,0.000129,2]
[342088107,1731427832347,-172.565,0.000129,2]
[342088108,1731427832356,-181.17575502,0.000129,2]
[342088109,1731427832365,-3500.0,0.000129,2]
[342088110,1731427832375,-509.55602778,0.000129,2]
[342088111,1731427832384,-1281.64665214,0.000129,2]
[342088112,1731427832394,-302.78994,0.000129,2]
[342088113,1731427832403,-1641.77,0.000129,2]
[342088114,1731427832412,-3745.0,0.00012924,2]
[342088115,1731427832421,-814.0,0.00012924,2]
[342088116,1731427832430,-922.0,0.00012924,2]
[342088117,1731427832440,-1363.84,0.00012925,2]
[342088118,1731427832460,-3487.0,0.00012925,2]
[342088119,1731427832470,-1159.0,0.0001295,2]
[342088120,1731427832479,-151.497,0.0001295,2]
[342088121,1731427832488,-5927.0,0.0001295,2]
[342088122,1731427832497,-13634.0,0.0001295,2]
[342088123,1731427832506,-500.0,0.00012973,2]
[342088124,1731427832515,-500.0,0.00012973,2]
[342088125,1731427832524,-944.264853,0.0001299,2]
[342088126,1731427832533,-5897.9530241,0.0001299,2]
[342088127,1731427832543,-367.1186198,0.0001299,2]
[342088128,1731427832551,-300.0,0.00012999,2]
[342088129,1731427832560,-220.70786873,0.00012999,2]
[342088130,1731427832570,-495.7705662,0.00012999,2]
[342088131,1731427832579,-1375.0,0.00012999,2]
[342088132,1731427832588,-1000.0,0.00012999,2]
[342088133,1731427832597,-138170.72118473,0.00013,2]
[342088134,1731427832735,-866.7257035,0.00013,2]
[342088135,1731427832772,-1387.48853691,0.00013,2]
[342088141,1731427837723,-2849.57548831,0.00013,2]
[342088142,1731427837734,-10073.34258803,0.00013,2]
[342088143,1731427837746,-4154.96457642,0.00013,2]
[342088144,1731427837776,-17824.6822516,0.00013,2]
[342088158,1731427838385,-1325799.63726606,0.00013,2]
[342088160,1731427838394,-19880.823014,0.00013,2]
[342088162,1731427838403,-1727335.33042135,0.00013,2]
[342088167,1731427838449,-1232.44275,0.00013,2]
[342088284,1731427839687,-247.8852831,0.00012999,2]
[342088285,1731427839702,-1993.83697589,0.00013,2]
[342088286,1731427839796,-5639.40369673,0.00013,2]
[342088573,1731427842543,-331.32,0.00013,2]
[342088575,1731427842553,-508.32185898,0.00013,2]
[342088587,1731427842652,-1098.81154988,0.00013,2]
[342088593,1731427842704,-8625.39479999,0.00013,2]
[342088875,1731427845514,-3475.61794643,0.00013,2]
[342088881,1731427845565,-931.48,0.00013,2]
[342088884,1731427845620,-537.01533794,0.00013,2]
[342088885,1731427845631,-86400.00000002,0.00013,2]
[342088886,1731427845674,-6739.14148999,0.00013,2]
[342088887,1731427845752,-276.17277333,0.00013,2]
[342088888,1731427845763,-3324.16745945,0.00013,2]
[342088889,1731427845806,-1722.785625,0.00013,2]
[342089968,1731427922766,23900.0,0.00012051,2]
[342089971,1731427979189,1000.0,0.00011964,2]
[342089973,1731428175612,250.0,0.00011831,2]
[342089975,1731428177907,796.77,9.913e-05,2]
[342089976,1731428178118,796.77,0.00012177,2]
[342089978,1731428201889,167.0,0.0001218,2]
[342089979,1731428205552,218.27,0.00011825,2]
[342089980,1731428216409,610.56,0.00011792,2]
[342089984,1731428352889,500.0,0.0001,2]
[342089988,1731428505121,-218.27,0.00012417,2]
[342089989,1731428505142,-1279.0,0.00012487,2]
[342089990,1731428505162,-167.0,0.00012582,2]
[342089991,1731428505183,-161.01,0.00012585,2]
[342089992,1731428505207,-161.01,0.00012591,2]
[342089993,1731428505227,-26984.4554,0.00012596,2]
[342089994,1731428505248,-161.01,0.00012596,2]
[342089996,1731428536878,250.0,0.00011855,2]
[342089998,1731428571110,333.12354321,0.00011,12]
[342090000,1731428645152,150.0,0.00012232,2]
[342090001,1731428670614,1813.93,0.00011967,2]
[342090002,1731428738104,3589.52538501,9e-05,2]
[342090003,1731428741381,1000.0,0.00011848,2]
[342090004,1731428757110,1805.11290858,6.94e-05,2]
[342090018,1731428848081,247.18063078,0.000101,2]
[342090021,1731428938898,194.95,0.00011755,2]
[342090022,1731428939130,194.95,0.00012343,2]
[342090023,1731428972493,311.55,0.00011755,2]
[342090037,1731429016250,758.56,9.835e-05,2]
[342090038,1731429016695,758.56,0.00012099,2]
[342090050,1731429031921,-161.01,0.00012601,2]
[342090051,1731429031934,-161.01,0.00012606,2]
[342090052,1731429031943,-161.01,0.00012612,2]
[342090053,1731429031952,-161.01,0.00012617,2]
[342090054,1731429031960,-161.01,0.00012622,2]
[342090055,1731429031970,-161.01,0.00012627,2]
[342090056,1731429031979,-161.01,0.00012633,2]
[342090057,1731429031988,-161.01,0.00012638,2]
[342090058,1731429031997,-161.01,0.00012643,2]
[342090059,1731429032007,-792.91,0.00012648,2]
[342090060,1731429032017,-150.99,0.00012648,2]
[342090061,1731429032027,-161.01,0.00012648,2]
[342090062,1731429032037,-3759.59763134,0.0001268,2]
[342090063,1731429032048,-150.0,0.00012699,2]
[342090064,1731429032058,-300.0,0.00012699,2]
[342090065,1731429032068,-2500.0,0.000127,2]
[342090066,1731429032077,-24383.4815,0.000127,2]
[342090067,1731429032087,-163.12376136,0.000127,2]
[342090068,1731429032097,-2287.87379769,0.00012702,2]
[342090069,1731429032106,-150.0,0.00012719,2]
[342090070,1731429032116,-150.0,0.00012722,2]
[342090071,1731429032125,-150.0,0.00012723,2]
[342090072,1731429032135,-2287.87379768,0.00012724,2]
[342090073,1731429032144,-150.0,0.00012726,2]
[342090074,1731429032154,-150.0,0.00012731,2]
[342090075,1731429032163,-150.0,0.00012735,2]
[342090076,1731429032172,-150.0,0.00012739,2]
[342090077,1731429032187,-163.12376131,0.0001274,2]
[342090078,1731429032197,-150.0,0.0001274,2]
[342090079,1731429032207,-150.0,0.00012744,2]
[342090080,1731429032217,-2287.87379768,0.00012746,2]
[342090081,1731429032227,-1500.0,0.00012746,2]
[342090082,1731429032237,-150.0,0.00012747,2]
[342090083,1731429032246,-150.0,0.0001275,2]
[342090084,1731429032256,-150.0,0.0001275,2]
[342090086,1731429032265,-150.0,0.00012753,2]
[342090087,1731429032274,-150.0,0.00012754,2]
[342090089,1731429032283,-22714.78533536,0.00012756,2]
[342090091,1731429032292,-150.0,0.00012757,2]
[342090093,1731429032301,-150.0,0.00012757,2]
[342090094,1731429032311,-150.0,0.0001276,2]
[342090095,1731429032320,-150.0,0.0001276,2]
[342090096,1731429032330,-150.0,0.00012762,2]
[342090098,1731429032339,-150.0,0.00012765,2]
[342090100,1731429032348,-1500.0,0.00012765,2]
[342090101,1731429032358,-2287.87379768,0.00012768,2]
[342090102,1731429032367,-150.0,0.00012768,2]
[342090103,1731429032376,-150.0,0.00012769,2]
[342090105,1731429032386,-500.0,0.00012773,2]
[342090107,1731429032395,-150.0,0.00012775,2]
[342090109,1731429032404,-150.0,0.00012777,2]
[342090111,1731429032414,-163.12376131,0.0001278,2]
[342090113,1731429032423,-150.0,0.00012781,2]
[342090115,1731429032441,-150.0,0.00012782,2]
[342090117,1731429032450,-1500.0,0.00012784,2]
[342090119,1731429032459,-150.0,0.00012785,2]
[342090121,1731429032469,-150.0,0.00012786,2]
[342090123,1731429032478,-150.0,0.00012789,2]
[342090125,1731429032488,-2287.87379768,0.0001279,2]
[342090127,1731429032501,-150.0,0.00012791,2]
[342090129,1731429032510,-150.0,0.00012794,2]
[342090131,1731429032519,-150.0,0.00012794,2]
[342090133,1731429032529,-10874.8489,0.000128,2]
[342090135,1731429032539,-232.5284,0.000128,2]
[342090137,1731429032548,-1291.1638,0.000128,2]
[342090139,1731429032558,-334653.6899,0.000128,2]
[342090141,1731429032567,-5000.0,0.000128,2]
[342090143,1731429032576,-150.0,0.00012801,2]
[342090145,1731429032588,-150.0,0.00012803,2]
[342090147,1731429032597,-150.0,0.00012805,2]
[342090149,1731429032607,-150.0,0.00012805,2]
[342090151,1731429032616,-2287.87379768,0.00012812,2]
[342090153,1731429032626,-1500.0,0.00012812,2]
[342090155,1731429032635,-163.12376131,0.0001282,2]
[342090157,1731429032645,-150.0,0.00012821,2]
[342090159,1731429032654,-150.0,0.00012821,2]
[342090161,1731429032663,-150.0,0.00012821,2]
[342090163,1731429032672,-150.0,0.00012826,2]
[342090165,1731429032688,-150.0,0.00012827,2]
[342090167,1731429032697,-1500.0,0.00012829,2]
[342090169,1731429032707,-150.0,0.00012832,2]
[342090171,1731429032716,-2287.87379768,0.00012834,2]
[342090173,1731429032726,-150.0,0.00012835,2]
[342090175,1731429032735,-1500.0,0.00012837,2]
[342090177,1731429032745,-150.0,0.00012838,2]
[342090179,1731429032755,-150.0,0.00012855,2]
[342090181,1731429032764,-2287.87379768,0.00012856,2]
[342090183,1731429032773,-150.0,0.00012857,2]
[342090185,1731429032783,-163.12376131,0.0001286,2]
[342090187,1731429032793,-150.0,0.00012861,2]
[342090189,1731429032802,-150.0,0.00012862,2]
[342090190,1731429032812,-150.0,0.00012863,2]
[342090191,1731429032821,-1500.0,0.00012865,2]
[342090192,1731429032831,-3000.0,0.0001287,2]
[342090193,1731429032841,-150.0,0.00012872,2]
[342090194,1731429032851,-150.0,0.00012877,2]
[342090195,1731429032860,-150.0,0.00012877,2]
[342090196,1731429032870,-2287.87379768,0.00012878,2]
[342090197,1731429032889,-150.0,0.00012883,2]
[342090199,1731429032906,-1500.0,0.00012886,2]
[342090201,1731429032920,-150.0,0.00012887,2]
[342090204,1731429032939,-150.28575215,0.0001289,2]
[342090207,1731429032957,-203.59924665,0.0001289,2]
[342090210,1731429032973,-1500.0,0.00012892,2]
[342090212,1731429032986,-1500.0,0.00012893,2]
[342090215,1731429033001,-150.0,0.00012893,2]
[342090218,1731429033019,-150.0,0.00012895,2]
[342090220,1731429033036,-150.0,0.00012898,2]
[342090223,1731429033054,-12190.545,0.00012899,2]
[342090226,1731429033072,-973.057,0.00012899,2]
[342090229,1731429033089,-71714.00399717,0.000129,2]
[342090232,1731429033109,-1450.0,0.000129,2]
[342090241,1731429033198,-993.71539354,0.000129,2]
[342090244,1731429033220,-5358.28634486,0.000129,2]
[342090263,1731429033397,-612.98382558,0.000129,2]
[342090269,1731429033452,-17842.10173885,0.000129,2]
[342090271,1731429033466,-10318.47870222,0.000129,2]
[342090280,1731429033555,-1075.696575,0.000129,2]
[342090283,1731429033574,-1647.87495334,0.000129,2]
[342090285,1731429033592,-993.22696295,0.000129,2]
[342090297,1731429033700,-114744.18550649,0.000129,2]
[342090299,1731429033715,-1468.5218,0.000129,2]
[342090302,1731429033728,-100000.0,0.000129,2]
[342090304,1731429033742,-500.0,0.000129,2]
[342090307,1731429033758,-1000.0,0.000129,2]
[342090309,1731429033773,-8992.571,0.000129,2]
[342090312,1731429033790,-2500.0,0.000129,2]
[342090314,1731429033804,-172.565,0.000129,2]
[342090317,1731429033818,-72875.70509757,0.000129,3]
[342090319,1731429033832,-2287.87379768,0.000129,2]
[342090322,1731429033846,-163.12376131,0.000129,2]
[342090324,1731429033861,-1029.0,0.000129,2]
[342090327,1731429033876,-150.0,0.00012901,2]
[342090329,1731429033890,-150.0,0.00012901,2]
[342090332,1731429033904,-150.0,0.00012903,2]
[342090334,1731429033918,-150.0,0.00012903,2]
[342090337,1731429033933,-150.0,0.00012904,2]
[342090339,1731429033948,-150.0,0.00012906,2]
[342090341,1731429033962,-150.0,0.00012906,2]
[342090344,1731429033976,-150.0,0.00012907,2]
[342090346,1731429033990,-150.0,0.00012908,2]
[342090349,1731429034003,-631.0,0.0001291,2]
[342090351,1731429034018,-150.0,0.00012911,2]
[342090353,1731429034031,-159.06562171,0.00012912,2]
[342090356,1731429034046,-925.91581405,0.00012913,2]
[342090358,1731429034061,-150.0,0.00012918,2]
[342090361,1731429034074,-1500.0,0.00012919,2]
[342090363,1731429034089,-1647.18243597,0.0001292,2]
[342090366,1731429034102,-150.0,0.00012928,2]
[342090368,1731429034115,-194.95,0.00012931,2]
[342090370,1731429034130,-150.0,0.00012932,2]
[342090373,1731429034143,-150.0,0.00012933,2]
[342090375,1731429034158,-150.0,0.00012933,2]
[342090378,1731429034172,-150.0,0.00012938,2]
[342090380,1731429034189,-150.0,0.0001294,2]
[342090383,1731429034203,-150.0,0.00012941,2]
[342090385,1731429034217,-150.0,0.00012948,2]
[342090388,1731429034231,-150.0,0.00012949,2]
[342090390,1731429034246,-150.0,0.00012951,2]
[342090393,1731429034260,-150.0,0.00012952,2]
[342090395,1731429034274,-150.0,0.00012953,2]
[342090398,1731429034288,-150.0,0.00012953,2]
[342090400,1731429034302,-150.0,0.00012955,2]
[342090402,1731429034316,-150.0,0.00012958,2]
[342090405,1731429034331,-150.0,0.00012962,2]
[342090407,1731429034346,-150.0,0.00012963,2]
[342090410,1731429034360,-150.0,0.00012966,2]
[342090412,1731429034377,-150.0,0.00012972,2]
[342090415,1731429034391,-501.16908815,0.00012973,2]
[342090417,1731429034406,-150.0,0.00012974,2]
[342090420,1731429034421,-150.0,0.00012975,2]
[342090422,1731429034438,-150.0,0.00012976,2]
[342090425,1731429034453,-150.0,0.00012982,2]
[342090427,1731429034467,-150.0,0.00012982,2]
[342090430,1731429034481,-167.0,0.00012984,2]
[342090432,1731429034496,-150.0,0.00012985,2]
[342090435,1731429034512,-3321.3038937,0.00012988,2]
[342090437,1731429034525,-1105.6359422,0.00012988,2]
[342090439,1731429034539,-1500.0,0.00012988,2]
[342090442,1731429034553,-5590.54254307,0.00012997,2]
[342090444,1731429034566,-7154.82927732,0.00012998,2]
[342090447,1731429034581,-247.88528309,0.00012999,2]
[342090449,1731429034596,-574.99999999,0.00012999,2]
[342090451,1731429034609,-150.0,0.00012999,2]
[342090454,1731429034624,-500.0,0.00012999,2]
[342090456,1731429034638,-399.33215359,0.00012999,2]
[342090459,1731429034653,-500.0,0.00012999,2]
[342090461,1731429034668,-500.0,0.00012999,2]
[342090463,1731429034679,-500.0,0.00012999,2]
[342090465,1731429034691,-1000.0,0.00012999,2]
[342090467,1731429034701,-1080.48836848,0.00012999,3]
[342090469,1731429034711,-1087.70344959,0.00012999,3]
[342090472,1731429034725,-1375.0,0.00012999,2]
[342090474,1731429034735,-547.18154665,0.00012999,2]
[342090476,1731429034745,-10419.9187194,0.00013,2]
[342090478,1731429034758,-427.48826949,0.00013,2]
[342090480,1731429034770,-1151.55012815,0.00013,2]
[342090482,1731429034783,-256.7011023,0.00013,2]
[342090589,1731429035956,200.0,0.00011753,2]
[342090667,1731429036996,150.12,0.00011753,2]
[342090893,1731429039105,-17230.392,0.00013,2]
[342090895,1731429039116,-861.8,0.00013,2]
[342090902,1731429039168,-1322441.59924148,0.00013,2]
[342090903,1731429039178,-19880.823014,0.00013,2]
[342090905,1731429039191,-1737555.11532527,0.00013,2]
[342090908,1731429039203,-11499.0837954,0.00013,2]
[342090909,1731429039213,-78541.85547244,0.00013,2]
[342090910,1731429039263,-2331.11721687,0.00013,2]
[342090911,1731429039274,-3869.15414783,0.00013,2]
[342090912,1731429039285,-10347.12959553,0.00013,2]
[342090913,1731429039297,-3346.43555221,0.00013,2]
[342090914,1731429039308,-1064.69513782,0.00013,2]
[342090915,1731429039320,-2485.78811419,0.00013,2]
[342090916,1731429039362,-9342.46809932,0.00013,2]
[342090917,1731429039408,-847.3692,0.000127,2]
[342090919,1731429039417,-746.20172789,0.00013,2]
[342090921,1731429039429,-4910.12092189,0.00013,2]
[342090922,1731429039444,-3013.41528113,0.00013,2]
[342090923,1731429039456,-127656.29084917,0.00013,2]
[342090924,1731429039523,-7452.40475897,0.00013,2]
[342091015,1731429040640,-4504.33941297,0.0001291,2]
[342091016,1731429040652,-2070.36713284,0.0001291,2]
[342091017,1731429040664,-627.45258038,0.0001291,2]
[342091018,1731429040677,-6431.84087381,0.0001291,2]
[342091019,1731429040690,-17672.76951159,0.00013,2]
[342091020,1731429040880,-588.8407695,0.00013,2]
[342091021,1731429040919,-3491.11023332,0.00013,2]
[342091022,1731429040931,-433.568,0.00013,2]
[342091023,1731429040946,-573.50075553,0.00013,2]
[342091024,1731429040981,-1282.91016242,0.00013,2]
[342091043,1731429042843,-276.38013412,0.0001291,2]
[342091044,1731429042860,-297.401,0.0001291,2]
[342091045,1731429042871,-463.3999995,0.0001291,2]
[342091046,1731429042906,-111.81886638,0.0001291,2]
[342091047,1731429042915,-893.73252764,0.00013,2]
[342091048,1731429042927,-6425.7,0.00013,2]
[342091049,1731429042941,-8753.39654251,0.00013,2]
[342091050,1731429042952,-165312.78261628,0.00013,2]
[342091069,1731429043300,-2971.96780267,0.00013,2]
[342091071,1731429043312,-2633.81532336,0.00013,2]
[342091073,1731429043324,-3439.29279449,0.00013,2]
[342091076,1731429043340,-3020.40554775,0.00013,2]
[342091085,1731429043420,-5992.78888602,0.00013,2]
[342091088,1731429043431,-4966.36254442,0.00013,2]
[342091090,1731429043449,-2851.84220795,0.00013,2]
[342091092,1731429043460,-71700.39154099,0.00013,2]
[342091094,1731429043472,-2284.26862723,0.00013,2]
[342091095,1731429043482,-21667.0,0.00013,2]
[342091096,1731429043492,-41947.29429209,0.00013,2]
[342091348,1731429045958,-335.711085,0.00012773,2]
[342091351,1731429045971,-164.288915,0.00012773,2]
[342091353,1731429045981,-559.0,0.0001291,2]
[342091355,1731429045991,-423.31978284,0.00013,2]
[342091358,1731429046021,-21505.0,0.00013,2]
[342091361,1731429046033,-3318.10013,0.00013,2]
[342091363,1731429046044,-666829.65549636,0.00013,2]
[342091365,1731429046057,-662.84544259,0.00013,2]
[342091373,1731429046136,-2118.47527804,0.00013,2]
[342091390,1731429046315,-10139.73602466,0.00013,2]
[342091493,1731429063423,164.28,0.0001259,2]
[342091496,1731429099262,150.0,0.00012374,2]
[342091497,1731429110573,156.77,0.00012329,2]
[342091498,1731429168938,256.77,0.00012393,2]
[342091499,1731429170599,231.26,0.00012393,2]
[342091500,1731429191141,8578.92567563,0.000126,2]
[342091501,1731429222944,150.0,0.00012255,2]
[342091502,1731429222968,100.0,0.00012255,2]
[342091503,1731429232028,250.0,0.00012255,2]
[342091504,1731429250272,488.29963075,0.00021,30]
[342091505,1731429291819,150.0,0.00011975,2]
[342091506,1731429291845,5389.75,0.00011975,2]
[342091508,1731429474500,150.0,0.00011974,2]
[342091509,1731429474523,150.0,0.00011974,2]
[342091510,1731429474544,150.0,0.00011974,2]
[342091511,1731429474566,150.0,0.00011974,2]
[342091512,1731429474587,150.0,0.00011974,2]
[342091513,1731429474611,150.0,0.00011974,2]
[342091514,1731429474632,100.0,0.00011974,2]
[342091515,1731429497027,152.88,0.00011951,2]
[342091516,1731429497242,152.88,0.00011958,2]
[342091517,1731429497459,152.88,0.00011966,2]
[342091518,1731429497704,152.88,0.00011973,2]
[342091519,1731429497937,152.88,0.00011981,2]
[342091520,1731429498277,152.88,0.00011988,2]
[342091521,1731429499056,152.88,0.00011995,2]
[342091522,1731429499111,152.88,0.00012003,2]
[342091523,1731429499213,152.88,0.0001201,2]
[342091526,1731429667112,150.0,0.00011962,2]
[342091527,1731429667135,5.78,0.00011962,2]
[342091532,1731429805757,150.0,0.00010249,2]
[342091533,1731429805785,150.0,0.00010249,2]
[342091534,1731429805810,150.0,0.00010249,2]
[342091535,1731429805836,150.0,0.00010249,2]
[342091536,1731429805863,82.7,0.00010249,2]
[342091537,1731429824478,150.0,0.00012139,2]
[342091538,1731429824499,150.0,0.00012139,2]
[342091539,1731429824521,150.0,0.00012139,2]
[342091540,1731429824871,150.0,0.00012139,2]
[342091541,1731429830503,301.54,0.00010959,2]
[342091542,1731429862221,150.0,0.00011936,2]
[342091543,1731429862242,73.52,0.00011936,2]
[342091547,1731429885371,156.77,0.00011936,2]
[342091548,1731429885399,43.23,0.00011936,2]
[342091550,1731429917943,150.0,0.00011913,2]
[342091551,1731429917964,100.0,0.00011913,2]
[342091552,1731429953862,355.0,0.000236,120]
[342091555,1731429960276,151.87,0.00011918,2]
[342091556,1731429964552,4.9,0.00011918,2]
[342091557,1731429964575,156.15,0.00011918,2]
[342091559,1731430201718,1000.0,0.00011893,2]
[342091560,1731430211383,150.0,0.00011893,2]
[342091561,1731430211406,22.34,0.00011893,2]
[342091562,1731430211611,127.66,0.00011907,2]
[342091563,1731430211639,44.68,0.00011907,2]
[342091564,1731430212015,150.0,0.00011922,2]
[342091565,1731430212038,22.34,0.00011922,2]
[342091566,1731430212463,150.0,0.00011937,2]
[342091567,1731430212486,22.34,0.00011937,2]
[342091568,1731430212610,127.66,0.00011952,2]
[342091569,1731430212636,44.68,0.00011952,2]
[342091570,1731430222993,431.02,0.00010959,2]
[342091576,1731430231906,-156.77,0.00012329,2]
[342091577,1731430231917,-243.43756939,0.00012487,2]
[342091578,1731430232003,-2118.56243061,0.00012487,2]
[342091579,1731430232013,-682.7,0.00012513,2]
[342091580,1731430232023,-167.0,0.00012561,2]
[342091581,1731430232032,-150.0,0.00012575,2]
[342091582,1731430232042,-150.0,0.00012599,2]
[342091583,1731430232052,-96592.98212437,0.000126,2]
[342091584,1731430232061,-3183.04,0.00012667,2]
[342091585,1731430232070,-170006.591,0.000127,2]
[342091586,1731430232079,-37873.4214,0.000127,2]
[342091587,1731430232089,-100000.0,0.000127,2]
[342091588,1731430232098,-1096.9441,0.000127,2]
[342091589,1731430232108,-1000.0,0.000127,2]
[342091590,1731430232117,-151.87,0.00012712,2]
[342091591,1731430232128,-464.283817,0.00012733,2]
[342091592,1731430232137,-464.283817,0.00012767,2]
[342091593,1731430232147,-1000.0,0.000128,2]
[342091594,1731430232155,-464.283817,0.000128,2]
[342091595,1731430232164,-464.283817,0.00012833,2]
[342091596,1731430232174,-464.283817,0.00012867,2]
[342091597,1731430232183,-3000.0,0.0001287,2]
[342091598,1731430232192,-150.0,0.00012877,2]
[342091599,1731430232201,-5000.0,0.000129,2]
[342091600,1731430232211,-397.44481504,0.000129,2]
[342091601,1731430232220,-464.283817,0.000129,2]
[342091602,1731430232229,-1461.0,0.000129,2]
[342091603,1731430232238,-854.43110144,0.000129,2]
[342091604,1731430232248,-2273.46417885,0.000129,2]
[342091605,1731430232257,-778.446,0.00012903,2]
[342091606,1731430232266,-500.0,0.00012973,2]
[342091607,1731430232276,-1126.0,0.00012986,2]
[342091608,1731430232285,-183.08656322,0.0001299,2]
[342091609,1731430232294,-1563.5607205,0.0001299,2]
[342091610,1731430232304,-522.202495,0.0001299,2]
[342091611,1731430232312,-183.08656322,0.0001299,2]
[342091612,1731430232322,-379.99141886,0.00012999,2]
[342091613,1731430232331,-895.1773,0.00012999,2]
[342091614,1731430232340,-1375.0,0.00012999,2]
[342091615,1731430232348,-130072.32933621,0.00013,2]
[342091616,1731430232360,-426347.14567049,0.00013,2]
[342091617,1731430232371,-2017.20116009,0.00013,2]
[342091618,1731430232473,-1160.95432201,0.00013,2]
[342091619,1731430232484,-227017.00000021,0.00013,2]
[342091620,1731430232496,-115195.22949571,0.00013,2]
[342091621,1731430232507,-294664.39999999,0.00013,2]
[342091622,1731430232620,-956.71339648,0.00013,2]
[342091637,1731430237976,-108203.36941223,0.00013,2]
[342091638,1731430238033,-12880.77223697,0.00013,2]
[342091639,1731430238044,-4120.89106267,0.00013,2]
[342091640,1731430238385,-4267.06473156,0.00013,2]
[342091641,1731430238396,-1404.95242468,0.00013,2]
[342091642,1731430238407,-2559.2430863,0.00013,2]
[342091643,1731430238550,-1726.2255,0.00013,2]
[342091644,1731430238561,-15944.70671943,0.00013,2]
[342091645,1731430238571,-10130.78563627,0.00013,2]
[342091777,1731430239892,-381.63983307,0.00013,2]
[342091796,1731430240065,-671.0548347,0.00013,2]
[342091798,1731430240076,-6430.41664702,0.00013,2]
[342091800,1731430240087,-331.12055891,0.00013,2]
[342091803,1731430240099,-635.22600001,0.00013,2]
[342091807,1731430240128,-667.33,0.00013,2]